Cogmind - Beta 15 @@@ ROGUE MODE // 2025.05.17 @ 14:44:17 Player: Waste Result: Self-destructed Performance ------------- Evolutions (3) 1500 Regions Visited (6) 1200 Robots Destroyed (101) 505 Value Destroyed (2626) 2626 Prototype IDs (6) 120 Alien Tech Used (0) 0 Bonus (184) 184 TOTAL SCORE: 6135 Bonus ------- High Alert Combat Kills 22 Follower Combat Kills 162 Cogmind --------- Core Integrity 464/700 Matter 56/300 Energy 150/150 System Corruption 3% Temperature Cool (0) Movement Core (450) Ox8 Location -7/Factory Parts ------- > --- POWER (1) -------- Micro Nuclear Core > --- PROPULSION (4) --- (None) > --- UTILITY (6) ------ Large Storage Unit Improved Signal Interpreter Improved Signal Interpreter Improved Melee Analysis Suite Hacking Suite System Shield > --- WEAPON (2) ------- (None) > --- INVENTORY (15) --- Micro Nuclear Core Structural Scanner Microactuators Force Booster Reaction Control System Improved Light Armor Plating Improved Light Armor Plating Improved Medium Armor Plating Heavy Ion Cannon Enhanced Autogun Heavy Missile Launcher Heavy Missile Launcher Great Axe Great Axe Peak State ------------ > --- POWER ------------ Cooled Ion Engine > --- PROPULSION ------- Light Treads Improved Treads Improved Treads Improved Treads > --- UTILITY ---------- High-capacity Storage Unit Weapon Cycler Weapon Cycler Improved Light Armor Plating > --- WEAPON ----------- Enhanced Autogun Gauss Rifle > --- INVENTORY -------- Cooled Ion Engine Light Deuterium Engine Micro Nuclear Core Micro Nuclear Core Light Treads Light Treads Improved Treads Improved Hover Unit Improved Hover Unit Improved Hover Unit Improved Hover Unit Large Storage Unit Improved Sensor Array Improved Signal Interpreter Medium Armor Plating Improved Light Armor Plating Improved Medium Laser Improved Medium Laser Improved Grenade Launcher Improved Grenade Launcher [Rating: 35] Favorites ----------- Power Cooled Ion Engine Engine Cooled Ion Engine Power Core Micro Nuclear Core Propulsion Light Treads Treads Light Treads Leg Aluminum Leg Hover Unit Improved Hover Unit Utility Large Storage Unit Device Weapon Cycler Storage Large Storage Unit Processor Improved Signal Interpreter Hackware Hacking Suite Protection Light Armor Plating Weapon Improved Light Cannon Energy Gun EM Pulse Gun Energy Cannon Heavy Ion Cannon Ballistic Gun Enhanced Autogun Ballistic Cannon Improved Light Cannon Launcher Improved Grenade Launcher Build | -11 -10 -10 -9 -9 -8 -7 ------- Run | Yrd Mat Min Mat Min Mat Fac Slots Evolved 6 | . . . 2 . 2 2 Power . | . . . . . . . Propulsion 2 | . . . 2 . . . Utility 4 | . . . . . 2 2 Weapon . | . . . . . . . Parts Attached 61 | . 3 . 18 1 19 20 Power 5 | . . . 1 . . 4 Engine 3 | . . . 1 . . 2 Core 2 | . . . . . . 2 Reactor . | . . . . . . . Propulsion 24 | . . . 12 . 6 6 Treads 17 | . . . 10 . 6 1 Leg 2 | . . . 2 . . . Wheel . | . . . . . . . Hover 5 | . . . . . . 5 Flight . | . . . . . . . Utility 19 | . 2 . 2 . 8 7 Device 4 | . . . . . 2 2 Storage 3 | . 1 . . . 2 . Processor 3 | . . . . . . 3 Hackware 2 | . . . . . . 2 Protection 7 | . 1 . 2 . 4 . Artifact . | . . . . . . . Weapon 13 | . 1 . 3 1 5 3 Energy Gun 2 | . 1 . . . 1 . Energy Cannon 1 | . . . . . . 1 Ballistic Gun 2 | . . . . . 2 . Ballistic Cannon 3 | . . . 2 . 1 . Launcher 5 | . . . 1 1 1 2 Special Weapon . | . . . . . . . Impact Weapon . | . . . . . . . Slashing Weapon . | . . . . . . . Piercing Weapon . | . . . . . . . Special Melee Weapon . | . . . . . . . Unidentified Prototypes 1 | . . . . . 1 . Parts Lost 16 | . 1 . 2 1 4 8 Power 1 | . . . . . . 1 Propulsion 7 | . . . . . 2 5 Utility 5 | . . . 1 1 1 2 Weapon 3 | . 1 . 1 . 1 . Highest Loss Streak 3 | . 1 . 2 1 2 3 To Critical Strikes . | . . . . . . . Average Backups 13 | . 7 10 13 15 16 13 Power 2 | . 1 1 2 3 3 1 Propulsion 3 | . 4 4 4 4 4 . Utility 2 | . . 1 1 1 2 5 Weapon 4 | . 1 2 5 7 5 5 Tool/Special . | . . . . . . . Unused Backups 17 | . 2 . 1 . 4 10 Power 1 | . . . . . 1 . Propulsion . | . . . . . . . Utility 8 | . 2 . . . . 6 Weapon 8 | . . . 1 . 3 4 Tool/Special . | . . . . . . . Average Slot Usage (%) 90 | . 97 100 95 95 97 66 Engine 9 | . 14 14 11 11 9 2 Treads 20 | . . . 34 44 35 . Leg 7 | . 28 28 6 . . . Hover 4 | . . . . . . 23 Device 5 | . . . . . 16 5 Storage 10 | . 14 14 11 11 9 7 Processor 2 | . . . . . . 12 Protection 8 | . 12 14 10 6 8 . Energy Gun 7 | . 28 28 7 . 1 . Ballistic Gun 2 | . . . . . 7 . Ballistic Cannon 7 | . . . 14 21 9 . Peak Build Rating 35 | . 7 8 16 16 35 35 Average Rating 19 | . 6 7 12 15 29 26 On Entrance 13 | 6 6 7 8 16 15 33 Naked Turns . | . . . . . . . Heaviest Build 62 | 14 32 32 39 39 62 38 Greatest Support 89 | 20 20 20 80 80 89 28 Greatest Overweight (x) 2 | . 1 1 1 . . 2 Average Overweight (x) . | . . 1 . . . . Largest Inventory Capacity 20 | . 15 15 15 15 20 20 Average Capacity 15 | . 9 15 15 15 16 15 Most Carried 20 | . 8 11 15 15 20 19 Average Carried 13 | . 7 10 13 15 16 13 Final Capacity 20 | 8 15 15 15 15 20 15 Final Carried 19 | 6 7 11 15 15 19 14 Class Distribution -------------------- 98% | Mutant Dominant Class ---------------- Mutant | -10/Materials Mutant | -10/Mines Mutant | -9/Materials Mutant | -9/Mines Mutant | -8/Materials Mutant | -7/Factory Resources | -11 -10 -10 -9 -9 -8 -7 ----------- Run | Yrd Mat Min Mat Min Mat Fac Matter Collected 2038 | 200 35 . 333 289 881 300 Remotely . | . . . . . . . Salvage Created 3003 | . 236 14 743 215 1367 428 Parts 213 | . 21 3 55 20 84 30 Haulers Intercepted 10 | . 1 . 3 . 4 2 Recyclers Shooed 4 | . . . 1 1 . 2 Parts Field Recycled . | . . . . . . . Retrieved Matter . | . . . . . . . Parts Self-Destructed . | . . . . . . . Prevented . | . . . . . . . Kills | -11 -10 -10 -9 -9 -8 -7 ------- Run | Yrd Mat Min Mat Min Mat Fac Combat Hostiles Destroyed 73 | . 5 1 21 9 30 7 Guns 24 | . 4 1 5 . 13 1 Cannons 31 | . . . 9 5 16 1 AOE 17 | . . . 7 4 1 5 Classes Destroyed 14 | . 4 . 2 4 2 2 Worker 2 | . . . . 1 1 . Builder 7 | . . . 1 1 1 4 Tunneler 1 | . . . . 1 . . Hauler 10 | . 1 . 3 . 4 2 Recycler 5 | . . . . 1 2 2 Watcher 3 | . 1 . 1 . 1 . Swarmer 28 | . 3 1 8 4 7 5 Grunt 28 | . 2 . 6 4 16 . Brawler 1 | . . . . . . 1 Duelist 1 | . . . . 1 . . Sentry 12 | . . . 7 . 5 . Hunter 1 | . . . . . 1 . Programmer 1 | . . . . . . 1 Heavy 1 | . . . . . 1 . Best Kill Streak 10 | . 2 1 10 6 5 5 Combat Bots Only 9 | . 2 1 9 4 5 3 Max Kills in Single Turn 4 | . 1 1 4 3 2 4 Gunslinging . | . . . . . . . Exploded 4 | . . . 4 2 1 2 Melee . | . . . . . . . Uniques/NPCs Destroyed . | . . . . . . . Combat | -11 -10 -10 -9 -9 -8 -7 -------- Run | Yrd Mat Min Mat Min Mat Fac Hostile Shots Fired 292 | . 24 2 84 25 101 56 Missed 85 | . 4 1 31 4 26 19 Hits 207 | . 20 1 53 21 75 37 Melee 3 | . . . . 3 . . Projectile 204 | . 20 1 53 18 75 37 Critical Strikes 6 | . . . 1 2 3 . Damage Taken 3036 | . 183 9 574 301 1279 690 Core 511 | . 14 . 98 8 155 236 Absorbed by Shields . | . . . . . . . Core Remaining (%) 84 | 100 . 94 . 73 71 . Volleys Fired 232 | . 19 1 51 19 96 46 Largest 2 | . 2 2 2 2 2 1 Hottest 81 | . 80 80 80 66 81 65 Shots Fired 392 | . 38 2 83 33 190 46 Gun 188 | . 38 2 35 . 81 32 Cannon 189 | . . . 43 28 108 10 Launcher 15 | . . . 5 5 1 4 Special . | . . . . . . . Kinetic 280 | . . . 43 28 177 32 Thermal 22 | . . . . . 12 10 Explosive 15 | . . . 5 5 1 4 Electromagnetic 75 | . 38 2 35 . . . Robot Hit Streak 18 | . 5 1 15 11 18 8 Robot Miss Streak 6 | . 6 1 3 3 5 2 Penetration Max 1 | . . . . . 1 . Secondary Targets 2 | . . . 1 . 1 . Max Gunslinging Chain 1 | . . . 1 . 1 . Shots Hit Robots 259 | . 21 1 57 20 126 34 Core Hits 132 | . 9 2 29 13 60 19 Critical Kills . | . . . . . . . Critical Parts Destroyed 2 | . . . . . 2 . Critical Strikes 11 | . . . 4 . 7 . Burn 1 | . . . . . 1 . Destroy 2 | . . . . . 2 . Blast 7 | . . . 3 . 4 . Corrupt 1 | . . . 1 . . . Melee Attacks . | . . . . . . . Impact . | . . . . . . . Slashing . | . . . . . . . Piercing . | . . . . . . . Sneak Attacks . | . . . . . . . Combat Hostiles . | . . . . . . . Follow-up Attacks . | . . . . . . . Damage Inflicted 6844 | . 304 34 1640 863 2729 1274 Guns 2276 | . 280 11 343 . 1157 485 Cannons 2883 | . . . 757 407 1503 216 Explosions 1518 | . . . 508 397 40 573 Melee . | . . . . . . . Ramming 167 | . 24 23 32 59 29 . Kinetic 4183 | . . . 757 407 2534 485 Thermal 342 | . . . . . 126 216 Explosive 1518 | . . . 508 397 40 573 Electromagnetic 634 | . 280 11 343 . . . Impact . | . . . . . . . Slashing . | . . . . . . . Piercing . | . . . . . . . Highest Corruption 3 | . . . . . . 3 Average Corruption 2 | . . . . . . 2 Corruption Purged . | . . . . . . . Corruption Blocked . | . . . . . . . Effects 19 | . . . . . . 19 Message Errors 8 | . . . . . . 8 Matter Fused 4 | . . . . . . 4 Heat Flow Errors 2 | . . . . . . 2 Parts Rejected 2 | . . . . . . 2 Data Loss (minor) 3 | . . . . . . 3 Overload Shots . | . . . . . . . Overflow Damage 183 | . . . 43 20 6 114 Projectiles 9 | . . . 3 . 6 . Explosions 174 | . . . 40 20 . 114 Melee . | . . . . . . . Knockbacks 19 | . . . 2 4 13 . Impact 1 | . . . . 1 . . Kinetic 17 | . . . 2 2 13 . Secondary 1 | . . . . 1 . . Self-Inflicted Damage 54 | . . . . 28 . 26 Shots 2 | . . . . 1 . 1 Rammed 14 | . . . 5 6 3 . Targets Rammed 29 | . 4 6 6 7 6 . Kicked 10 | . 4 6 . . . . Crushed 5 | . . . 1 1 3 . Highest Temperature 488 | . 231 27 117 60 488 239 Average Temperature 72 | . 81 16 52 28 90 45 Received Heat Transfer 828 | . 42 . 198 72 468 48 Effects 7 | . . . . . 7 . Energy Bleed 1 | . . . . . 1 . Interference 5 | . . . . . 5 . Damage (minor) 1 | . . . . . 1 . Siege Activations . | . . . . . . . Martial Activations . | . . . . . . . Shielding Activations . | . . . . . . . Robots Disrupted . | . . . . . . . Combat Hostiles . | . . . . . . . Robots Corrupted 1 | . 1 . . . . . Combat Hostiles 1 | . 1 . . . . . Parts Fried 6 | . 3 . 3 . . . Impact Corruptions . | . . . . . . . Robots Melted . | . . . . . . . Combat Hostiles . | . . . . . . . Parts Melted 1 | . . . . . 1 . Heat Transferred 629 | . . . . . 333 296 Parts Sabotaged . | . . . . . . . Parts Stolen . | . . . . . . . Parts Stripped . | . . . . . . . Power Chain Reactions . | . . . . . . . Alert | -11 -10 -10 -9 -9 -8 -7 ------- Run | Yrd Mat Min Mat Min Mat Fac Maximum Alert Level 2 | . . . 1 . 2 . Low Security (%) 87 | . 100 100 90 100 57 100 Level 1 11 | . . . 9 . 38 . Level 2 1 | . . . . . 4 . Level 3 . | . . . . . . . Level 4 . | . . . . . . . Level 5 . | . . . . . . . High Security . | . . . . . . . Max Security . | . . . . . . . Peak Influence 447 | . 77 73 327 135 447 198 Initial 198 | . . 19 3 115 . 198 Average 88 | . 22 15 58 63 183 87 Influence Increases 2735 | . 176 208 765 260 957 369 Destroy 0b10 Robot/C 1660 | . 100 140 500 180 600 140 Destroy 0b10 Robot/NC 140 | . 10 . 25 20 45 40 Destroy Leader 406 | . 24 30 128 30 170 24 Allied During Kill 50 | . . 32 18 . . . Successful Hack 69 | . 12 6 14 . 16 21 Disable Machine 165 | . 15 . 15 . 90 45 Destroy Structure 110 | . . . 35 30 21 24 Lose Combat Pursuer 135 | . 15 . 30 . 15 75 Influence Decreases 2735 | . 125 250 477 557 519 807 Entered New Map 460 | . . 32 6 182 . 240 Time Decay 2078 | . 115 218 391 368 479 507 Lost Part 137 | . 10 . 20 7 40 60 Lost Ally 60 | . . . 60 . . . Squads Dispatched 16 | . 1 . 2 . 6 7 Investigation 4 | . . . 2 . 1 1 Extermination 3 | . . . . . . 3 Reinforcement 6 | . 1 . . . 5 . Assault . | . . . . . . . Garrison 3 | . . . . . . 3 Intercept . | . . . . . . . Searches Triggered . | . . . . . . . Construction Impeded . | . . . . . . . Haulers Reinforced . | . . . . . . . Active Scanning Responses . | . . . . . . . Cargo Convoy Interrupts . | . . . . . . . Stealth | -11 -10 -10 -9 -9 -8 -7 --------- Run | Yrd Mat Min Mat Min Mat Fac Distress Signals 9 | . 3 . 3 . 3 . Communications Jammed . | . . . . . . . Distress Signals . | . . . . . . . Times Spotted 126 | . 11 5 31 9 47 23 Peak Tracking Total 5 | . 4 3 5 4 5 5 Tactical Retreats 9 | . 1 . 2 . 1 5 Traps | -11 -10 -10 -9 -9 -8 -7 ------- Run | Yrd Mat Min Mat Min Mat Fac Traps Triggered 11 | . 1 . 2 . 2 6 Indirectly . | . . . . . . . Trap Hack Attempts . | . . . . . . . Triggered . | . . . . . . . Disarmed . | . . . . . . . Reprogrammed . | . . . . . . . Reused . | . . . . . . . Traps Extracted . | . . . . . . . Installed . | . . . . . . . Triggered . | . . . . . . . Machines | -11 -10 -10 -9 -9 -8 -7 ---------- Run | Yrd Mat Min Mat Min Mat Fac Machines Disabled 11 | . 1 . 1 . 6 3 Max in Single Turn 2 | . 1 . 1 . 2 2 Garrison Access 2 | . . . . . 1 1 Machines Repaired . | . . . . . . . Machines Dismantled . | . . . . . . . Machines Sabotaged . | . . . . . . . Overloaded Fab Kills . | . . . . . . . Hacking | -11 -10 -10 -9 -9 -8 -7 --------- Run | Yrd Mat Min Mat Min Mat Fac Machines Accessed 21 | . 3 1 2 . 8 7 Terminals 18 | . 3 1 2 . 7 5 Fabricators 1 | . . . . . . 1 Repair Stations . | . . . . . . . Recycling Units . | . . . . . . . Scanalyzers . | . . . . . . . Garrison Access 2 | . . . . . 1 1 Total Hacks 58 | . 10 2 5 . 22 19 Successful 29 | . 3 1 3 . 11 11 Failed 28 | . 7 . 2 . 11 8 Catastrophic 4 | . 1 . . . 2 1 Database Lockouts 1 | . . 1 . . . . Manual 50 | . 9 3 5 . 19 14 Terminals 51 | . 10 2 5 . 20 14 Fabricators 4 | . . . . . . 4 Repair Stations . | . . . . . . . Recycling Units . | . . . . . . . Scanalyzers . | . . . . . . . Garrison Access 3 | . . . . . 2 1 Terminal Hacks 12 | . 3 1 3 . 3 2 Part Schematic 1 | . . . . . . 1 Robot Analysis 3 | . 2 . 1 . . . Prototype ID Bank 2 | . 1 1 . . . . Branch Access Points 2 | . . . 1 . 1 . Terminal Index 1 | . . . . . . 1 Hauler Manifests 2 | . . . 1 . 1 . Registered Components 1 | . . . . . 1 . Fabricator Hacks 1 | . . . . . . 1 Load Schematic 1 | . . . . . . 1 Repair Station Hacks . | . . . . . . . Recycling Unit Hacks . | . . . . . . . Scanalyzer . | . . . . . . . Garrison Access Hacks 2 | . . . . . 1 1 Seal Access 2 | . . . . . 1 1 Unauthorized Hacks 14 | . . . . . 7 7 Terminals 14 | . . . . . 7 7 Botnet 5 | . . . . . 2 3 Skim 9 | . . . . . 5 4 Fabricators . | . . . . . . . Repair Stations . | . . . . . . . Recycling Units . | . . . . . . . Scanalyzers . | . . . . . . . Garrison Access . | . . . . . . . Data Cores Recovered . | . . . . . . . Used . | . . . . . . . Hacking Detections 16 | . 3 . 1 . 7 5 Full Trace Events 2 | . 1 . . . . 1 Feedback Events . | . . . . . . . Feedback Blocked . | . . . . . . . Robot Schematics Acquired . | . . . . . . . Robots Built . | . . . . . . . Authchips . | . . . . . . . Time . | . . . . . . . Total Robot Build Rating . | . . . . . . . Part Schematics Acquired 1 | . . . . . . 1 Parts Built . | . . . . . . . Authchips . | . . . . . . . Time . | . . . . . . . Total Part Build Rating . | . . . . . . . Parts Repaired . | . . . . . . . Time . | . . . . . . . Parts Recycled . | . . . . . . . Recycled Matter . | . . . . . . . Retrieved Matter . | . . . . . . . Retrieved Components . | . . . . . . . Parts Scanalyzed . | . . . . . . . Part Schematics Acquired . | . . . . . . . Parts Damaged . | . . . . . . . Bothacking | -11 -10 -10 -9 -9 -8 -7 ------------ Run | Yrd Mat Min Mat Min Mat Fac Used RIF Installer . | . . . . . . . Robots Hacked . | . . . . . . . Non-combat . | . . . . . . . Combat . | . . . . . . . Robot Hacks Applied . | . . . . . . . Relay Couplers Released . | . . . . . . . Fabnet Peak Effective % . | . . . . . . . Robots Rewired . | . . . . . . . Allies Hacked . | . . . . . . . Hacks Repelled . | . . . . . . . Allies | -11 -10 -10 -9 -9 -8 -7 -------- Run | Yrd Mat Min Mat Min Mat Fac Total Allies 4 | . . 4 . . . . Largest Group 4 | . . 4 3 . . . Highest-Rated Group 71 | . . 71 40 . . . Highest-Rated Ally 31 | . . 31 16 . . . Total Orders . | . . . . . . . Ally Attacks 54 | . . 33 21 . . . Total Damage 483 | . . 346 137 . . . Kills 10 | . . 6 4 . . . Allies Corrupted . | . . . . . . . Allies Melted . | . . . . . . . Intel | -11 -10 -10 -9 -9 -8 -7 ------- Run | Yrd Mat Min Mat Min Mat Fac Active Infowar (turns) 1042 | . . . . . . 1042 Sensors 1042 | . . . . . . 1042 Robot Analysis Total 3 | . 2 . 1 . . . Derelict Logs Recovered 2 | . . 1 . 1 . . Drone Launches . | . . . . . . . Drone Recoveries . | . . . . . . . Exploration | -11 -10 -10 -9 -9 -8 -7 ------------- Run | Yrd Mat Min Mat Min Mat Fac Turns Passed 6752 | . 427 1095 1165 891 1727 1447 Spaces Moved 4137 | 1 260 566 562 513 844 1391 Core . | . . . . . . . Treads 1791 | . . . 434 513 844 . Legs 955 | 1 260 566 128 . . . Wheels . | . . . . . . . Hover 1391 | . . . . . . 1391 Flight . | . . . . . . . Fastest Speed 48 | 120 120 190 120 160 160 48 Average Speed 136 | 120 134 190 160 160 160 81 Slowest Speed 190 | 120 190 190 190 160 160 176 Overloaded Moves . | . . . . . . . Propulsion Burnouts . | . . . . . . . Robots Hopped . | . . . . . . . Potential Cave-ins . | . . . . . . . Cave-ins Triggered . | . . . . . . . Exploration Rate (%) 57 | 2 44 94 55 98 76 34 Regions Visited 6 Branch Regions 2 Pre-discovered Areas 2 | . . . . 1 1 . Known Exits Taken 1 | . . . 1 . . . Unknown Exits Taken 5 | 1 1 1 . 1 1 . Scrap Searched 4 | . . 3 . 1 . . Spaces Dug . | . . . . . . . Terrain Destroyed 120 | . . . 39 36 17 28 Melee . | . . . . . . . Projectile 12 | . . . 1 . 11 . AOE 108 | . . . 38 36 6 28 Terrain Rammed . | . . . . . . . Walls Destroyed . | . . . . . . . Machines Disabled . | . . . . . . . Actions | -11 -10 -10 -9 -9 -8 -7 --------- Run | Yrd Mat Min Mat Min Mat Fac Total 4964 | . 298 579 743 545 1124 1675 Wait 376 | . 9 3 76 4 132 152 Move 4131 | . 259 565 561 512 843 1391 Hop . | . . . . . . . Pick Up 44 | . 2 4 13 . 13 12 Fast Attach 16 | . 2 . 3 1 3 7 Attach 35 | . 1 . 6 . 5 23 Detach 13 | . . . . . . 13 Swap 27 | . 1 . 12 2 12 . Drop 48 | . 1 . 15 . 14 18 Fire 232 | . 19 1 51 19 96 46 Melee . | . . . . . . . Ram . | . . . . . . . Kick 10 | . 4 6 . . . . Crush 19 | . . . 6 7 6 . Escape Stasis 13 | . . . . . . 13 Rewire . | . . . . . . . Trap . | . . . . . . . Miscellaneous . | . . . . . . . Route ------- -11/Scrapyard -10/Materials -10/Mines (discovered 4 exits: *Mat x2 / [*Exi] / [*Sub]) -9/Materials (discovered 5 exits: *Mat / *Min x2 / Sto x2) -9/Mines (discovered 3 exits: *Mat x2 / [*Zio]) -8/Materials (discovered 3 exits: *Fac x3) -7/Factory (discovered 3 exits: [*Fac] / *Low x2) History --------- Turn | Location | Event 1 | -11/Scrapyard | Discovered new exit (range 0) 1 | -11/Scrapyard | Entered Materials 80 | -10/Materials | Discovered new exit (range 8) 313 | -10/Materials | Build established: Mutant 428 | -10/Materials | Entered Mines 506 | -10/Mines | Assisted by bots powering up and referring to "LRC-V3" 656 | -10/Mines | Deemed a non-threat by the Exiles lab entrance 656 | -10/Mines | Discovered new exit (range 5) 715 | -10/Mines | Central database locked down 1133 | -10/Mines | Received a Rocket Launcher from a helpful Derelict 1179 | -10/Mines | Discovered new exit (range 6) 1182 | -10/Mines | Received a Mining Laser from a helpful Derelict 1301 | -10/Mines | Discovered new exit (range 6) 1331 | -10/Mines | Discovered new exit (range 8) 1523 | -10/Mines | Entered Materials 1523 | -9/Materials | Accompanied by 3 allies 1523 | -9/Materials | Evolved 2 slots: Propulsion x2 1524 | -9/Materials | Identified exit to Storage 2331 | -9/Materials | Identified exit to Mines 2344 | -9/Materials | Discovered new exit (range 8) 2620 | -9/Materials | Destroyed 9 combat bots 2688 | -9/Materials | Entered Mines 2801 | -9/Mines | A Derelict revealed a hidden shortcut to a safe place 2864 | -9/Mines | Learned location of Zion (-7) 3242 | -9/Mines | Discovered new exit (range 13) 3555 | -9/Mines | Discovered new exit (range 8) 3579 | -9/Mines | Entered Materials 3579 | -8/Materials | Evolved 2 slots: Utility x2 4377 | -8/Materials | Discovered new exit (range 10) 4898 | -8/Materials | Discovered new exit (range 8) 4929 | -8/Materials | Learned 4 Recycling zone layouts 4958 | -8/Materials | Learned Storage trap positions 4979 | -8/Materials | Learned Factory emergency access door positions 5010 | -8/Materials | Learned location of Lower Caves (-6) 5052 | -8/Materials | Learned location of 1 exit from Storage 5300 | -8/Materials | Discovered new exit (range 4) 5306 | -8/Materials | Entered Factory 5306 | -7/Factory | Evolved 2 slots: Utility x2 5307 | -7/Factory | Identified exit to Lower Caves 5762 | -7/Factory | Garrison activated, responded to threat 5881 | -7/Factory | Lost 3 parts (1p2n) 6448 | -7/Factory | Allied Derelicts emerged from ambush trap array 6516 | -7/Factory | Discovered new exit (range 15) 6721 | -7/Factory | Lost 3 allies 6753 | -7/Factory | Self-destructed Last Messages --------------- Rating: 3p Time: 38 Initiate build sequence. 06632_ ALERT: Suspicious activity at Fabricator F003. Dispatching Investigation squad. 06644_ K-01 Serf cleans the Matter Pump. 06660_ E4-56Y(g) critical meltdown. 06661_ K-01 Serf cleans the Matter Pump. 06674_ System corrupted: Mic. Nuclear Core rejected. 06674_ Acquired Mic. Nuclear Core. 06678_ K-01 Serf cleans the Matter Pump. 06686_ LW-PYG(g) suffers critical hit (Burn). 06686_ LW-PYG(g) overheating. 06687_ K-01 Serf cleans the Matter Pump. 06702_ ALERT: Potential suspicious activity detected, Programmers report to Factory Zone 9O. 06714_ System corrupted: Imp. Hover Unit rejected. 06714_ Acquired Imp. Hover Unit. 06736_ QTWC7V0N0: IJ4NUX/<1E4A8G UEP%DBL 06752_ Imp. Hover Unit destroyed. Map ----- +----------------------------------------------------+ | ????????????????????????????? ####+######????????? | | ????????????????????????????# +????????? | | ????????????????????????????# #????????? | | ????????????????????????????# +????????? | | ????????????????????????????# #????????? | | ????????????????????????????# /=! !########## | | ????????????????????????????# /=! // | | ????????????????????????????# == // | | ????????????????????????????+ // | | ????????????????????????????# | | ????????????????????????????+ | | ?????????????????????????????????### ######### | | #+?#???????????????????????????????# ## | | #???????????????????????????????# ## """ "" | | " #???????????????????????????????# #???"" "" | | #???????????????????????????????# #????" "" | | # #????????????????????????????????# #???? | | # #????????????????????????????????# #???? | | +????????????????????????????????# #??? | | # #????????????????????????????????# ######### | | # #????????????????????????????????# | | # ###############??????????????????# | | # #?????############## | | # ####### # | | + # | | #+######### # @ # # T###### | | ??????# # # ####????? | | ????### + """" p# #???????# | | !! #?????# #### ]!! """" + #???????# | | !! #?????# #??# ]! """" # ######### | | !! #?????# #??# !! """" # # # | | #?????# #??# """" # # """" # | | #######?????# #### """" # # """" # | | ????????????# + Y"""" # # """" # | | ????????????# ######### # # """" # | | ##??????????# #???????#####+# ###### + # | | #??????????# #??????????????##????# # """" # | | #??????????# #############+???????# # """" # | | #????????#?# ##/ ????????# #! """" # | | #?????? #?# ## ! ?????????# # """" # | | #???? #?# ## ??######## # # | | #?? #?# ## ??# ######### | | # #?# ## """ """ # #???????? | | + #?# ## """ """ + #???????? | | # #?# + """ """ # #???????? | | #?? /#?# ## # #???????? | | #???? #?# ## """ """ ## ########???????? | | +?????? #?# ## """ """ ## # #????????????? | | ############+## ! """ """ ## # #????????????? | | ## ] ! + ## # #????????????? | +----------------------------------------------------+ Best States ------------- Heat Dissipation 34 Energy Generation 15 Energy Capacity 280 Matter Stores 300 Matter Capacity 300 Sight Range 16 Robot Scan Range 15 Terrain Scan Density 10 Armor Coverage 300 Weapon Cycling 30 Evasion (%) 55 Melee Accuracy 6 Recoil Reduction 4 Offensive Hacking 10 Defensive Hacking 10 Item Schematics ----------------- Aerolev Unit | -7/Factory | Hacked Robot Schematics ------------------ None Fabricated ------------ Nothing Repaired ---------- Nothing Alien Tech Used ----------------- None Achievements -------------- None Challenges ------------ None Game ------ Seed DecoyFluxStreamer Manual? 0 Play Time 00:39:59 Cumulative 350.5 hours Start 2025.05.17 @ 14:08:05 End 2025.05.17 @ 14:44:17 Sessions 1 Manual Loads 0 Difficulty Rogue Special Mode None Game No. 451 Rogue 451 Adventurer 0 Explorer 0 Win Type - Total 27 Types 12/1/8/1/1/1/0/1/1/1 Lore% 86 Gallery% 78 Achievement% 76 Wizard Run 0 Options --------- Layout 0 ASCII 0 Keyboard 0 Movement Numpad Keybinds 0 Fullscreen 1 Font 18/SmallcapsGlow Map View 76x50 Zoom Use 0% Tactical HUD 1 Map Filters NONE Filters NONE Steam 1 RUN: eab628b2-c890-447c-ac36-81a1d3688b55